[Event "Late-Titled-Tuesday-Blitz-September-12-2023"]
[Site "Chess.com"]
[Date "2023.09.12"]
[Round "10"]
[White "xozr"]
[Black "cukin84"]
[Result "0-1"]
[WhiteElo "2340"]
[BlackElo "2243"]
[TimeControl "180+1"]
[EndTime "15:49:21 PDT"]
[Termination "cukin84 won by resignation"]

1. e4 {[%clk 0:03:00.9]} 1... c6 {[%clk 0:02:59.6]} 2. d4 {[%clk 0:02:59.1]}
2... d5 {[%clk 0:02:59.7]} 3. Nc3 {[%clk 0:02:59.5]} 3... a6 {[%clk 0:02:59.3]}
4. Nf3 {[%clk 0:02:56.1]} 4... Bg4 {[%clk 0:02:58.3]} 5. exd5 {[%clk 0:02:38.6]}
5... cxd5 {[%clk 0:02:57.7]} 6. h3 {[%clk 0:02:39.1]} 6... Bh5 {[%clk
0:02:56.7]} 7. Bd3 {[%clk 0:02:38]} 7... e6 {[%clk 0:02:56.3]} 8. O-O {[%clk
0:02:38.5]} 8... Nc6 {[%clk 0:02:55.7]} 9. Be3 {[%clk 0:02:25.3]} 9... Nf6
{[%clk 0:02:54.5]} 10. g4 {[%clk 0:02:17.3]} 10... Bg6 {[%clk 0:02:53.7]} 11.
Ne2 {[%clk 0:02:16.7]} 11... Ne4 {[%clk 0:02:50.1]} 12. c3 {[%clk 0:02:11.6]}
12... h5 {[%clk 0:02:48.5]} 13. g5 {[%clk 0:02:07.8]} 13... h4 {[%clk
0:02:48.2]} 14. Nf4 {[%clk 0:01:59.9]} 14... Bf5 {[%clk 0:02:45.4]} 15. Kh2
{[%clk 0:01:36.7]} 15... Bd6 {[%clk 0:02:40]} 16. Rg1 {[%clk 0:01:35.7]} 16...
Nxf2 {[%clk 0:02:32.9]} 17. Bxf2 {[%clk 0:01:32.5]} 17... Bxf4+ {[%clk
0:02:32.3]} 18. Kg2 {[%clk 0:01:33]} 18... g6 {[%clk 0:02:29.3]} 19. Bxf5 {[%clk
0:01:25.5]} 19... gxf5 {[%clk 0:02:29.4]} 20. Kh1 {[%clk 0:01:18.1]} 20... Bg3
{[%clk 0:02:20.9]} 21. Qe2 {[%clk 0:01:11.5]} 21... f4 {[%clk 0:02:19.9]} 22. g6
{[%clk 0:01:04]} 22... Qf6 {[%clk 0:02:16.7]} 23. gxf7+ {[%clk 0:00:57.8]} 23...
Qxf7 {[%clk 0:02:16.7]} 24. Ng5 {[%clk 0:00:54.8]} 24... Qe7 {[%clk 0:02:14.1]}
25. Bxg3 {[%clk 0:00:43.7]} 25... hxg3 {[%clk 0:02:13]} 26. Qxe6 {[%clk
0:00:42.3]} 26... Qxe6 {[%clk 0:02:08.2]} 27. Nxe6 {[%clk 0:00:37.3]} 27...
Rxh3+ {[%clk 0:02:07.8]} 28. Kg2 {[%clk 0:00:37]} 28... Rh2+ {[%clk 0:02:07.8]}
29. Kf3 {[%clk 0:00:37.2]} 29... Rf2+ {[%clk 0:02:05.8]} 30. Kg4 {[%clk
0:00:36.8]} 30... Kd7 {[%clk 0:01:59]} 31. Rae1 {[%clk 0:00:22.4]} 31... Rg8+
{[%clk 0:01:56.5]} 32. Ng5 {[%clk 0:00:22.3]} 32... g2 {[%clk 0:01:41.1]} 33.
Kf5 {[%clk 0:00:16.3]} 33... Ne7+ {[%clk 0:01:33.4]} 34. Kf6 {[%clk 0:00:15.9]}
34... Rg6+ {[%clk 0:01:31.5]} 35. Kf7 {[%clk 0:00:16]} 35... Rxg5 {[%clk
0:01:26.9]} 36. Rxe7+ {[%clk 0:00:15.9]} 36... Kd6 {[%clk 0:01:26.9]} 37. Rge1
{[%clk 0:00:15]} 37... Kc6 {[%clk 0:01:10]} 38. R1e6+ {[%clk 0:00:14]} 38... Kb5
{[%clk 0:01:09.9]} 39. Rxb7+ {[%clk 0:00:14.5]} 39... Kc4 {[%clk 0:01:10.2]} 40.
Re1 {[%clk 0:00:10.8]} 40... g1=Q {[%clk 0:01:07.6]} 41. b3+ {[%clk 0:00:10.7]}
41... Kd3 {[%clk 0:01:07.5]} 42. Rxg1 {[%clk 0:00:10.2]} 42... Rxg1 {[%clk
0:01:07.3]} 0-1

[Event "Late-Titled-Tuesday-Blitz-September-12-2023"]
[Site "Chess.com"]
[Date "2023.09.12"]
[Round "10"]
[White "IMGC"]
[Black "becemix"]
[Result "1-0"]
[WhiteElo "2447"]
[BlackElo "2531"]
[TimeControl "180+1"]
[EndTime "15:49:25 PDT"]
[Termination "IMGC won on time"]

1. d4 {[%clk 0:02:59.7]} 1... d5 {[%clk 0:01:43.5]} 2. Nf3 {[%clk 0:03:00.6]}
2... Nf6 {[%clk 0:01:41.8]} 3. e3 {[%clk 0:02:58.7]} 3... c5 {[%clk 0:01:30.6]}
4. c3 {[%clk 0:02:58.4]} 4... Nc6 {[%clk 0:01:30.7]} 5. Bd3 {[%clk 0:02:58.7]}
5... Bg4 {[%clk 0:01:27.5]} 6. Nbd2 {[%clk 0:02:57.7]} 6... e6 {[%clk
0:01:27.2]} 7. Qa4 {[%clk 0:02:45.9]} 7... Nd7 {[%clk 0:01:19.8]} 8. O-O {[%clk
0:02:41.2]} 8... c4 {[%clk 0:01:13.5]} 9. Bb1 {[%clk 0:02:39.7]} 9... a6 {[%clk
0:01:13.5]} 10. e4 {[%clk 0:02:36.1]} 10... b5 {[%clk 0:01:10.9]} 11. Qd1 {[%clk
0:02:36.6]} 11... Be7 {[%clk 0:01:11.1]} 12. h3 {[%clk 0:02:36]} 12... Bh5
{[%clk 0:01:10.3]} 13. Qe2 {[%clk 0:02:31.7]} 13... O-O {[%clk 0:01:09.9]} 14.
Re1 {[%clk 0:02:26.8]} 14... dxe4 {[%clk 0:01:08.3]} 15. Qxe4 {[%clk 0:02:25.1]}
15... Nf6 {[%clk 0:00:30.3]} 16. Qxc6 {[%clk 0:02:21.6]} 16... Qa5 {[%clk
0:00:30.5]} 17. Ne5 {[%clk 0:02:12.9]} 17... Rac8 {[%clk 0:00:27.9]} 18. b4
{[%clk 0:02:01.3]} 18... cxb3 {[%clk 0:00:12.8]} 19. Nxb3 {[%clk 0:01:58.5]}
19... Rxc6 {[%clk 0:00:10.1]} 20. Nxa5 {[%clk 0:01:57.7]} 20... Rxc3 {[%clk
0:00:10.5]} 21. Bd2 {[%clk 0:01:49.5]} 21... Rc7 {[%clk 0:00:10]} 22. Nac6
{[%clk 0:01:46.5]} 22... Bd6 {[%clk 0:00:09]} 23. Ba5 {[%clk 0:01:46.9]} 23...
Rcc8 {[%clk 0:00:08.3]} 24. Bd3 {[%clk 0:01:38.1]} 24... Nd5 {[%clk 0:00:08.7]}
25. Rac1 {[%clk 0:01:35.4]} 25... Ba3 {[%clk 0:00:06.9]} 26. Rc2 {[%clk
0:01:33.1]} 26... f6 {[%clk 0:00:07.3]} 27. Nd7 {[%clk 0:01:26]} 27... Rfe8
{[%clk 0:00:06.5]} 28. Nb6 {[%clk 0:01:15.3]} 28... Nxb6 {[%clk 0:00:04.7]} 29.
Bxb6 {[%clk 0:01:16.2]} 29... Kf7 {[%clk 0:00:02.3]} 30. g4 {[%clk 0:01:02.7]}
30... Bg6 {[%clk 0:00:01.7]} 31. Bxg6+ {[%clk 0:01:03.3]} 31... hxg6 {[%clk
0:00:01.8]} 32. Ree2 {[%clk 0:00:50.7]} 32... Bd6 {[%clk 0:00:02.3]} 33. Kg2
{[%clk 0:00:49.5]} 33... g5 {[%clk 0:00:02.8]} 34. Na5 {[%clk 0:00:44.2]} 1-0

[Event "Late-Titled-Tuesday-Blitz-September-12-2023"]
[Site "Chess.com"]
[Date "2023.09.12"]
[Round "10"]
[White "jcmesafischer"]
[Black "laskakid"]
[Result "0-1"]
[WhiteElo "2357"]
[BlackElo "2261"]
[TimeControl "180+1"]
[EndTime "15:49:25 PDT"]
[Termination "laskakid won by checkmate"]

1. Nf3 {[%clk 0:02:56.7]} 1... Nf6 {[%clk 0:02:59.2]} 2. d4 {[%clk 0:02:55.4]}
2... d5 {[%clk 0:02:57.8]} 3. g3 {[%clk 0:02:55.1]} 3... g6 {[%clk 0:02:56.6]}
4. Bg2 {[%clk 0:02:55.3]} 4... Bg7 {[%clk 0:02:56.8]} 5. O-O {[%clk 0:02:55.1]}
5... O-O {[%clk 0:02:57]} 6. b3 {[%clk 0:02:53.2]} 6... Nbd7 {[%clk 0:02:50.1]}
7. Bb2 {[%clk 0:02:51.8]} 7... a5 {[%clk 0:02:48.9]} 8. a4 {[%clk 0:02:44.1]}
8... b6 {[%clk 0:02:45.5]} 9. Re1 {[%clk 0:02:42.7]} 9... Bb7 {[%clk 0:02:44.1]}
10. Ne5 {[%clk 0:02:42.8]} 10... c5 {[%clk 0:02:32.1]} 11. e3 {[%clk 0:02:36.9]}
11... Qc7 {[%clk 0:02:29]} 12. Nc3 {[%clk 0:02:36.1]} 12... e6 {[%clk
0:02:06.3]} 13. Nb5 {[%clk 0:02:34]} 13... Qb8 {[%clk 0:02:02.2]} 14. dxc5
{[%clk 0:02:32.8]} 14... Nxe5 {[%clk 0:01:56.5]} 15. cxb6 {[%clk 0:02:25.4]}
15... Ne8 {[%clk 0:01:40]} 16. Ba3 {[%clk 0:02:17.1]} 16... Nd7 {[%clk
0:01:21.3]} 17. c4 {[%clk 0:02:14.7]} 17... Bxa1 {[%clk 0:01:11.6]} 18. Qxa1
{[%clk 0:02:14.1]} 18... Qe5 {[%clk 0:01:01.9]} 19. cxd5 {[%clk 0:01:37.6]}
19... Qxa1 {[%clk 0:00:59.5]} 20. Rxa1 {[%clk 0:01:33.4]} 20... exd5 {[%clk
0:00:53.9]} 21. Bxf8 {[%clk 0:01:32]} 21... Kxf8 {[%clk 0:00:52.8]} 22. Nc7
{[%clk 0:01:29]} 22... Nxc7 {[%clk 0:00:47]} 23. bxc7 {[%clk 0:01:29.9]} 23...
Rc8 {[%clk 0:00:46.6]} 24. Rc1 {[%clk 0:01:28.8]} 24... Ke7 {[%clk 0:00:46.8]}
25. Rd1 {[%clk 0:01:06.3]} 25... Nf6 {[%clk 0:00:43.9]} 26. Rc1 {[%clk
0:01:05.1]} 26... Kd6 {[%clk 0:00:43.1]} 27. Kf1 {[%clk 0:00:45.2]} 27... Rxc7
{[%clk 0:00:43]} 28. Rxc7 {[%clk 0:00:44.8]} 28... Kxc7 {[%clk 0:00:42.9]} 29.
Ke2 {[%clk 0:00:45.7]} 29... Kd6 {[%clk 0:00:42]} 30. Kd3 {[%clk 0:00:46.1]}
30... Kc5 {[%clk 0:00:41.7]} 31. Kc3 {[%clk 0:00:46.3]} 31... Ne4+ {[%clk
0:00:41]} 32. Bxe4 {[%clk 0:00:45.2]} 32... dxe4 {[%clk 0:00:40.8]} 33. h4
{[%clk 0:00:45.5]} 33... h5 {[%clk 0:00:40.2]} 34. Kc2 {[%clk 0:00:46]} 34...
Kb4 {[%clk 0:00:39.6]} 35. Kb2 {[%clk 0:00:46.4]} 35... Bd5 {[%clk 0:00:39.8]}
36. Kc2 {[%clk 0:00:47.3]} 36... Bxb3+ {[%clk 0:00:39.9]} 37. Kd2 {[%clk
0:00:48.2]} 37... Bxa4 {[%clk 0:00:38.9]} 38. f3 {[%clk 0:00:49.1]} 38... exf3
{[%clk 0:00:38.5]} 39. g4 {[%clk 0:00:50]} 39... hxg4 {[%clk 0:00:38.1]} 40. e4
{[%clk 0:00:50.9]} 40... g3 {[%clk 0:00:37.4]} 41. e5 {[%clk 0:00:51.8]} 41...
g2 {[%clk 0:00:37.6]} 42. h5 {[%clk 0:00:52.7]} 42... gxh5 {[%clk 0:00:37.3]}
43. e6 {[%clk 0:00:53.6]} 43... fxe6 {[%clk 0:00:36.4]} 44. Ke3 {[%clk 0:00:54]}
44... g1=Q+ {[%clk 0:00:35.3]} 45. Kf4 {[%clk 0:00:54.9]} 45... Qg4+ {[%clk
0:00:34.3]} 46. Ke5 {[%clk 0:00:55.8]} 46... Qf5+ {[%clk 0:00:31.8]} 47. Kd6
{[%clk 0:00:54.9]} 47... e5 {[%clk 0:00:30.6]} 48. Ke7 {[%clk 0:00:55.8]} 48...
e4 {[%clk 0:00:29.8]} 49. Kd6 {[%clk 0:00:56.7]} 49... Kc4 {[%clk 0:00:28.4]}
50. Ke7 {[%clk 0:00:57.6]} 50... Qg6 {[%clk 0:00:27.3]} 51. Kd8 {[%clk
0:00:57.7]} 51... Qf7 {[%clk 0:00:26.8]} 52. Kc8 {[%clk 0:00:57.6]} 52... Bc6
{[%clk 0:00:26.8]} 53. Kd8 {[%clk 0:00:58.5]} 53... Qd7# {[%clk 0:00:26.6]} 0-1

[Event "Late-Titled-Tuesday-Blitz-September-12-2023"]
[Site "Chess.com"]
[Date "2023.09.12"]
[Round "10"]
[White "Fandorine"]
[Black "SpeedofLight0"]
[Result "0-1"]
[WhiteElo "2905"]
[BlackElo "3084"]
[TimeControl "180+1"]
[EndTime "15:49:32 PDT"]
[Termination "SpeedofLight0 won on time"]

1. Nf3 {[%clk 0:03:00.9]} 1... d5 {[%clk 0:02:57.3]} 2. c4 {[%clk 0:03:01.3]}
2... e6 {[%clk 0:02:55.9]} 3. g3 {[%clk 0:03:01.6]} 3... dxc4 {[%clk 0:02:55.2]}
4. Bg2 {[%clk 0:02:58.9]} 4... a6 {[%clk 0:02:53.3]} 5. O-O {[%clk 0:02:57.4]}
5... b5 {[%clk 0:02:46.8]} 6. Ne5 {[%clk 0:02:56.8]} 6... Ra7 {[%clk 0:02:47]}
7. d3 {[%clk 0:02:56.9]} 7... cxd3 {[%clk 0:02:36.6]} 8. Nxd3 {[%clk 0:02:49.5]}
8... c5 {[%clk 0:02:32.4]} 9. Bf4 {[%clk 0:02:49.9]} 9... Qb6 {[%clk 0:02:29.5]}
10. a4 {[%clk 0:02:48.6]} 10... Nd7 {[%clk 0:02:20.1]} 11. axb5 {[%clk 0:02:26]}
11... axb5 {[%clk 0:02:21]} 12. Nc3 {[%clk 0:02:19.7]} 12... Ba6 {[%clk
0:02:13.9]} 13. Be3 {[%clk 0:01:51.9]} 13... Ngf6 {[%clk 0:02:03.9]} 14. b4
{[%clk 0:01:51.7]} 14... Be7 {[%clk 0:01:49.5]} 15. Qc2 {[%clk 0:01:26.6]} 15...
Rc7 {[%clk 0:01:37]} 16. Qa2 {[%clk 0:01:05]} 16... Bb7 {[%clk 0:01:11.6]} 17.
Bxb7 {[%clk 0:00:58]} 17... Rxb7 {[%clk 0:01:11.2]} 18. Rfb1 {[%clk 0:00:55.8]}
18... O-O {[%clk 0:01:08.5]} 19. bxc5 {[%clk 0:00:55.7]} 19... Qc6 {[%clk
0:00:52.5]} 20. Nb4 {[%clk 0:00:23.1]} 20... Qc8 {[%clk 0:00:51.6]} 21. c6
{[%clk 0:00:22.6]} 21... Bxb4 {[%clk 0:00:50.4]} 22. cxb7 {[%clk 0:00:21.4]}
22... Qxc3 {[%clk 0:00:50.3]} 23. Rc1 {[%clk 0:00:16.5]} 23... Qe5 {[%clk
0:00:47.6]} 24. Rab1 {[%clk 0:00:10.7]} 24... Nd5 {[%clk 0:00:45.1]} 25. Rc8
{[%clk 0:00:09.9]} 25... Nc3 {[%clk 0:00:40.1]} 26. Qa8 {[%clk 0:00:08]} 26...
Nxb1 {[%clk 0:00:38.9]} 27. Bf4 {[%clk 0:00:04]} 27... Qxe2 {[%clk 0:00:37.3]}
28. Rd8 {[%clk 0:00:03.2]} 28... Bc5 {[%clk 0:00:20.3]} 0-1

[Event "Late-Titled-Tuesday-Blitz-September-12-2023"]
[Site "Chess.com"]
[Date "2023.09.12"]
[Round "10"]
[White "jcibarra"]
[Black "BrandonJacobson"]
[Result "1-0"]
[WhiteElo "2954"]
[BlackElo "3032"]
[TimeControl "180+1"]
[EndTime "15:49:36 PDT"]
[Termination "jcibarra won on time"]

1. e4 {[%clk 0:03:00.9]} 1... c5 {[%clk 0:02:59.8]} 2. Nf3 {[%clk 0:03:01]} 2...
d6 {[%clk 0:02:59.6]} 3. c3 {[%clk 0:03:01.4]} 3... Nf6 {[%clk 0:02:59.9]} 4. h3
{[%clk 0:03:01.6]} 4... Nc6 {[%clk 0:03:00.3]} 5. Bd3 {[%clk 0:03:01.9]} 5... e5
{[%clk 0:03:00.9]} 6. Bc2 {[%clk 0:03:02.3]} 6... d5 {[%clk 0:03:01.5]} 7. exd5
{[%clk 0:03:01.2]} 7... Qxd5 {[%clk 0:03:02.4]} 8. d3 {[%clk 0:02:59.7]} 8...
Be6 {[%clk 0:02:51.9]} 9. O-O {[%clk 0:02:52.9]} 9... h6 {[%clk 0:02:45.9]} 10.
Na3 {[%clk 0:02:42.8]} 10... O-O-O {[%clk 0:02:42.2]} 11. Bb3 {[%clk 0:02:33.3]}
11... Qd7 {[%clk 0:02:12.1]} 12. Bxe6 {[%clk 0:02:26.7]} 12... Qxe6 {[%clk
0:02:11.9]} 13. Qe2 {[%clk 0:02:25.8]} 13... Bd6 {[%clk 0:02:09.9]} 14. Nc4
{[%clk 0:02:23.7]} 14... Bc7 {[%clk 0:02:09.8]} 15. Be3 {[%clk 0:02:20.1]} 15...
Nd5 {[%clk 0:02:04.9]} 16. Rfe1 {[%clk 0:02:05]} 16... Rhe8 {[%clk 0:02:02.3]}
17. a4 {[%clk 0:01:58.8]} 17... f5 {[%clk 0:01:32.9]} 18. Qc2 {[%clk 0:01:47.1]}
18... Nxe3 {[%clk 0:00:48]} 19. Rxe3 {[%clk 0:01:34.1]} 19... e4 {[%clk
0:00:41.4]} 20. Rae1 {[%clk 0:00:30.8]} 20... Bf4 {[%clk 0:00:23.2]} 21. R3e2
{[%clk 0:00:30.9]} 21... Qg8 {[%clk 0:00:20.7]} 22. Nfd2 {[%clk 0:00:10.2]}
22... exd3 {[%clk 0:00:07.3]} 23. Qxd3 {[%clk 0:00:10.4]} 23... Bxd2 {[%clk
0:00:02.8]} 24. Rxe8 {[%clk 0:00:07.9]} 24... Rxe8 {[%clk 0:00:03.4]} 25. Rxe8+
{[%clk 0:00:07.9]} 1-0

[Event "Late-Titled-Tuesday-Blitz-September-12-2023"]
[Site "Chess.com"]
[Date "2023.09.12"]
[Round "10"]
[White "ahkashefi2800"]
[Black "temus_galaktionov"]
[Result "0-1"]
[WhiteElo "2619"]
[BlackElo "2823"]
[TimeControl "180+1"]
[EndTime "15:49:36 PDT"]
[Termination "temus_galaktionov won by resignation"]

1. d4 {[%clk 0:02:55.4]} 1... c6 {[%clk 0:02:59.3]} 2. Nf3 {[%clk 0:02:54.6]}
2... g6 {[%clk 0:03:00.2]} 3. g3 {[%clk 0:02:54.8]} 3... Bg7 {[%clk 0:02:59.5]}
4. Bg2 {[%clk 0:02:55.3]} 4... d6 {[%clk 0:02:58.6]} 5. O-O {[%clk 0:02:55.6]}
5... Nd7 {[%clk 0:02:58.4]} 6. b3 {[%clk 0:02:56.1]} 6... Ngf6 {[%clk
0:02:56.9]} 7. Bb2 {[%clk 0:02:56.4]} 7... O-O {[%clk 0:02:57.8]} 8. Nbd2 {[%clk
0:02:55]} 8... Qc7 {[%clk 0:02:56.5]} 9. c4 {[%clk 0:02:53.3]} 9... e5 {[%clk
0:02:56.3]} 10. dxe5 {[%clk 0:02:53.1]} 10... dxe5 {[%clk 0:02:57.2]} 11. Qc2
{[%clk 0:02:53.4]} 11... Re8 {[%clk 0:02:57]} 12. Ng5 {[%clk 0:02:53.2]} 12...
Nc5 {[%clk 0:02:57.3]} 13. b4 {[%clk 0:02:45.7]} 13... Ne6 {[%clk 0:02:54.2]}
14. Nge4 {[%clk 0:02:43]} 14... Nxe4 {[%clk 0:02:54.3]} 15. Nxe4 {[%clk
0:02:43.9]} 15... f5 {[%clk 0:02:54.8]} 16. Nd2 {[%clk 0:02:40]} 16... Nd4
{[%clk 0:02:55]} 17. Qd1 {[%clk 0:02:24.5]} 17... e4 {[%clk 0:02:47.9]} 18. Nxe4
{[%clk 0:02:16.6]} 18... Rd8 {[%clk 0:02:16.1]} 19. Nd2 {[%clk 0:01:36.2]} 19...
Nf3+ {[%clk 0:02:15.6]} 20. Bxf3 {[%clk 0:01:29]} 20... Bxb2 {[%clk 0:02:16.2]}
21. Qc2 {[%clk 0:01:14.1]} 21... Bxa1 {[%clk 0:02:15.9]} 22. Rxa1 {[%clk
0:01:14.9]} 22... Qe5 {[%clk 0:02:16.4]} 23. Rb1 {[%clk 0:01:05.5]} 23... f4
{[%clk 0:02:12.6]} 24. Qb2 {[%clk 0:00:39.8]} 24... Qxb2 {[%clk 0:01:36.1]} 25.
Rxb2 {[%clk 0:00:40.7]} 25... fxg3 {[%clk 0:01:33.7]} 26. fxg3 {[%clk
0:00:40.9]} 26... Be6 {[%clk 0:01:34.6]} 27. b5 {[%clk 0:00:38.6]} 27... cxb5
{[%clk 0:01:33.2]} 28. cxb5 {[%clk 0:00:26.3]} 28... Rab8 {[%clk 0:01:33.4]} 29.
Kf2 {[%clk 0:00:21.4]} 29... b6 {[%clk 0:01:33.5]} 30. Ne4 {[%clk 0:00:20.2]}
30... Rbc8 {[%clk 0:01:33.5]} 31. Nf6+ {[%clk 0:00:17.3]} 31... Kg7 {[%clk
0:01:31.9]} 32. Ne4 {[%clk 0:00:17.1]} 32... Rc4 {[%clk 0:01:26.2]} 33. Ng5
{[%clk 0:00:10.5]} 33... Bg8 {[%clk 0:01:26]} 34. h4 {[%clk 0:00:06]} 34... Rd7
{[%clk 0:01:25.2]} 35. Bc6 {[%clk 0:00:03.9]} 35... Re7 {[%clk 0:01:23.7]} 36.
Rd2 {[%clk 0:00:03]} 36... Ra4 {[%clk 0:01:23.5]} 37. Bf3 {[%clk 0:00:01.7]}
37... Rxa2 {[%clk 0:01:22.8]} 38. Rd8 {[%clk 0:00:01.4]} 38... Bc4 {[%clk
0:01:22.4]} 39. Ne4 {[%clk 0:00:01.4]} 39... Bxb5 {[%clk 0:01:21.8]} 40. Nd6
{[%clk 0:00:01.1]} 40... Bxe2 {[%clk 0:01:20.4]} 41. Ne8+ {[%clk 0:00:01.4]}
41... Kh6 {[%clk 0:01:19.2]} 42. Nf6 {[%clk 0:00:01.5]} 42... Bxf3+ {[%clk
0:01:17.9]} 43. Kxf3 {[%clk 0:00:02.4]} 43... Rf7 {[%clk 0:01:16.6]} 44. Rd6
{[%clk 0:00:02.9]} 44... Kg7 {[%clk 0:01:16.2]} 45. h5 {[%clk 0:00:01.5]} 45...
Rxf6+ {[%clk 0:01:17.1]} 46. Rxf6 {[%clk 0:00:01.7]} 46... Kxf6 {[%clk 0:01:18]}
47. Kg4 {[%clk 0:00:01.6]} 47... Ra4+ {[%clk 0:01:17.2]} 48. Kh3 {[%clk
0:00:02]} 48... gxh5 {[%clk 0:01:17.8]} 49. g4 {[%clk 0:00:02]} 49... Rxg4
{[%clk 0:01:17]} 50. Kh2 {[%clk 0:00:02.9]} 50... b5 {[%clk 0:01:17.1]} 51. Kh1
{[%clk 0:00:03.8]} 51... b4 {[%clk 0:01:18]} 0-1

[Event "Late-Titled-Tuesday-Blitz-September-12-2023"]
[Site "Chess.com"]
[Date "2023.09.12"]
[Round "10"]
[White "cthulhuuu"]
[Black "RCone"]
[Result "0-1"]
[WhiteElo "2448"]
[BlackElo "2336"]
[TimeControl "180+1"]
[EndTime "15:49:36 PDT"]
[Termination "RCone won by checkmate"]

1. e4 {[%clk 0:02:58.2]} 1... d6 {[%clk 0:03:00]} 2. d4 {[%clk 0:02:58.2]} 2...
Nf6 {[%clk 0:03:00.2]} 3. Nc3 {[%clk 0:02:59.1]} 3... g6 {[%clk 0:03:00.2]} 4.
f4 {[%clk 0:02:59.6]} 4... Bg7 {[%clk 0:03:00.7]} 5. Nf3 {[%clk 0:03:00.5]} 5...
c5 {[%clk 0:02:59.6]} 6. e5 {[%clk 0:02:59.9]} 6... Nfd7 {[%clk 0:02:58.2]} 7.
Bb5 {[%clk 0:02:59.9]} 7... O-O {[%clk 0:02:54.9]} 8. Be3 {[%clk 0:02:46.1]}
8... cxd4 {[%clk 0:02:53]} 9. Bxd4 {[%clk 0:02:46]} 9... dxe5 {[%clk 0:02:42.1]}
10. Nxe5 {[%clk 0:02:34.8]} 10... Nxe5 {[%clk 0:02:36.9]} 11. Bxe5 {[%clk
0:02:32.7]} 11... Bxe5 {[%clk 0:02:31.3]} 12. Qxd8 {[%clk 0:02:22.5]} 12...
Bxc3+ {[%clk 0:02:30]} 13. bxc3 {[%clk 0:02:16]} 13... Rxd8 {[%clk 0:02:29.2]}
14. h4 {[%clk 0:02:16.3]} 14... Bg4 {[%clk 0:02:26.9]} 15. Bd3 {[%clk
0:02:07.8]} 15... Nd7 {[%clk 0:02:18.7]} 16. O-O {[%clk 0:00:36.8]} 16... Nc5
{[%clk 0:02:17.5]} 17. Bc4 {[%clk 0:00:37.4]} 17... e6 {[%clk 0:02:10.2]} 18. a4
{[%clk 0:00:21.5]} 18... Rd2 {[%clk 0:01:56.8]} 19. Rfc1 {[%clk 0:00:20.3]}
19... Rc8 {[%clk 0:01:48.4]} 20. a5 {[%clk 0:00:18.9]} 20... Ne4 {[%clk
0:01:45]} 21. Bd3 {[%clk 0:00:19]} 21... Nxc3 {[%clk 0:01:41]} 22. Ra3 {[%clk
0:00:14.4]} 22... Rxd3 {[%clk 0:01:38.4]} 23. cxd3 {[%clk 0:00:02.9]} 23... Ne2+
{[%clk 0:01:36.6]} 24. Kf2 {[%clk 0:00:03.7]} 24... Nxc1 {[%clk 0:01:33.8]} 25.
h5 {[%clk 0:00:04.6]} 25... gxh5 {[%clk 0:01:32.3]} 26. Ke3 {[%clk 0:00:05.5]}
26... Bf5 {[%clk 0:01:26]} 27. Kd4 {[%clk 0:00:05]} 27... Nxd3 {[%clk
0:01:25.4]} 28. Rb3 {[%clk 0:00:04.3]} 28... Rc7 {[%clk 0:01:23.9]} 29. a6
{[%clk 0:00:04.6]} 29... bxa6 {[%clk 0:01:23.1]} 30. g3 {[%clk 0:00:03.3]} 30...
Kg7 {[%clk 0:01:16.7]} 31. Ra3 {[%clk 0:00:02.8]} 31... Rc6 {[%clk 0:01:15.7]}
32. Rb3 {[%clk 0:00:02.8]} 32... Kf6 {[%clk 0:01:14.1]} 33. Rb8 {[%clk
0:00:02.9]} 33... a5 {[%clk 0:01:08.2]} 34. Ra8 {[%clk 0:00:03.1]} 34... Ra6
{[%clk 0:01:07.7]} 35. Rb8 {[%clk 0:00:03.6]} 35... a4 {[%clk 0:01:07.4]} 36.
Ke3 {[%clk 0:00:04.2]} 36... a3 {[%clk 0:01:06.4]} 37. g4 {[%clk 0:00:05.1]}
37... hxg4 {[%clk 0:01:06]} 38. Rc8 {[%clk 0:00:04.9]} 38... a2 {[%clk
0:01:05.4]} 39. Rc2 {[%clk 0:00:05.4]} 39... a1=Q {[%clk 0:01:04.8]} 40. Rh2
{[%clk 0:00:06.2]} 40... Qg1+ {[%clk 0:01:03.5]} 41. Rf2 {[%clk 0:00:06.5]}
41... Qxf2# {[%clk 0:01:02.7]} 0-1

[Event "Late-Titled-Tuesday-Blitz-September-12-2023"]
[Site "Chess.com"]
[Date "2023.09.12"]
[Round "10"]
[White "ckgchess"]
[Black "HansOnTwitch"]
[Result "0-1"]
[WhiteElo "2893"]
[BlackElo "3076"]
[TimeControl "180+1"]
[EndTime "15:49:39 PDT"]
[Termination "HansOnTwitch won by resignation"]

1. e4 {[%clk 0:03:00.9]} 1... c5 {[%clk 0:02:59.3]} 2. c3 {[%clk 0:03:01.3]}
2... Nf6 {[%clk 0:02:55.1]} 3. e5 {[%clk 0:03:01.9]} 3... Nd5 {[%clk 0:02:55.7]}
4. d4 {[%clk 0:03:02.8]} 4... cxd4 {[%clk 0:02:55.6]} 5. Bc4 {[%clk 0:03:03.5]}
5... Nb6 {[%clk 0:02:53.4]} 6. Bb3 {[%clk 0:03:03.4]} 6... Nc6 {[%clk
0:02:52.8]} 7. Nf3 {[%clk 0:03:03.7]} 7... d5 {[%clk 0:02:47.5]} 8. exd6 {[%clk
0:03:03.5]} 8... Qxd6 {[%clk 0:02:47.6]} 9. O-O {[%clk 0:03:04.1]} 9... g6
{[%clk 0:02:41.1]} 10. Ng5 {[%clk 0:02:39.8]} 10... e6 {[%clk 0:02:40.1]} 11.
Ne4 {[%clk 0:02:37.3]} 11... Qd8 {[%clk 0:02:39.9]} 12. Bg5 {[%clk 0:02:32.7]}
12... Be7 {[%clk 0:02:38]} 13. Bh6 {[%clk 0:02:27.4]} 13... f5 {[%clk
0:02:36.9]} 14. Ned2 {[%clk 0:02:16.8]} 14... d3 {[%clk 0:02:35.1]} 15. Re1
{[%clk 0:02:15.7]} 15... e5 {[%clk 0:02:29.4]} 16. Bg7 {[%clk 0:02:10.4]} 16...
Bf6 {[%clk 0:02:29.5]} 17. Bxh8 {[%clk 0:02:08.9]} 17... Bxh8 {[%clk 0:02:30.4]}
18. Na3 {[%clk 0:01:58.8]} 18... Kf8 {[%clk 0:02:28.8]} 19. Nac4 {[%clk
0:01:51.2]} 19... Bf6 {[%clk 0:02:20.9]} 20. Nxb6 {[%clk 0:01:44.7]} 20... axb6
{[%clk 0:02:20.2]} 21. Qf3 {[%clk 0:01:38.4]} 21... e4 {[%clk 0:02:15.4]} 22.
Nxe4 {[%clk 0:01:31.7]} 22... fxe4 {[%clk 0:02:14.7]} 23. Rxe4 {[%clk
0:01:30.6]} 23... Bf5 {[%clk 0:02:11.8]} 24. Rf4 {[%clk 0:01:16.3]} 24... Qd7
{[%clk 0:01:57.9]} 25. Rd1 {[%clk 0:01:12.3]} 25... Kg7 {[%clk 0:01:49.5]} 26.
Ba4 {[%clk 0:00:44.6]} 26... Rd8 {[%clk 0:01:26.2]} 27. g4 {[%clk 0:00:39.7]}
27... Ne5 {[%clk 0:01:16.6]} 28. Qg3 {[%clk 0:00:33.1]} 28... b5 {[%clk
0:01:14.6]} 29. gxf5 {[%clk 0:00:26]} 29... bxa4 {[%clk 0:01:14]} 30. fxg6
{[%clk 0:00:26.2]} 30... hxg6 {[%clk 0:00:55.9]} 31. Rd4 {[%clk 0:00:26.2]}
31... Qc8 {[%clk 0:00:51.8]} 32. Rxd8 {[%clk 0:00:26.3]} 32... Qxd8 {[%clk
0:00:52.7]} 33. f4 {[%clk 0:00:27.2]} 33... Nc4 {[%clk 0:00:38.7]} 34. Rxd3
{[%clk 0:00:18.5]} 34... Qb6+ {[%clk 0:00:38.1]} 35. Kg2 {[%clk 0:00:16.2]}
35... Qxb2+ {[%clk 0:00:35.1]} 36. Kh3 {[%clk 0:00:16.7]} 36... Qb5 {[%clk
0:00:34.5]} 37. Qg4 {[%clk 0:00:13.6]} 37... Ne5 {[%clk 0:00:28.3]} 0-1